Workbook

Sheet Maestra
C1: HOJA MAESTRA
A3: ESTA HOJA LLENA EL ENCABEZAMIENTO DE TODAS LAS OTRAS, NO LA BORRE NI LA ELIMINE
A4: EN TODO ESTE ARCHIVO, ESCRIBA SOLO EN LAS AREAS GRISES
A5: CUANDO LLENE LAS AREAS GRISES DE ESTA HOJA, GUARDE COMO (Nombre que quiera darle)
A6: Y CONTINUE CON SU TRABAJO EN LAS OTRAS HOJAS. RECUERDE, EN TODAS LAS HOJAS, SÓLO PODRA
A7: ESCRIBIR EN LAS AREAS GRISES.
A8: TORNEO | E8: CLASE | H8: CATEGORIA
A10: 2DO RANKING DEPARTAMENTAL 2020 | E10: SENCILLOS | H10: TERCERA
A12: SEDE | E12: CIUDAD | H12: FECHA
A14: LIGA SANTANDEREANA DE TENIS | E14: BUCARAMANGA | H14: 17 OCT - 02 NOV
H15: D/M/A
A16: COORDINADORA | E16: SUPERFICIE
A18: PAOLA A CHINCHILLA | E18: POLVO DE LADRILLO

Sheet Round Robin
E1: SENCILLOS CUADRO DE ROUND ROBIN
A2: Torneo | E2: =Maestra!A10 -> 2DO RANKING DEPARTAMENTAL 2020
A3: Sede | E3: =Maestra!A14 -> LIGA SANTANDEREANA DE TENIS
A4: Clase | E4: =Maestra!E10 -> SENCILLOS
A5: Ciudad | E5: =Maestra!E14 -> BUCARAMANGA
A6: Categoría | E6: =Maestra!H10 -> TERCERA
A7: Fecha | C7: =Maestra!H14 -> 17 OCT - 02 NOV | H7: COORDINADORA | AD7: =Maestra!A18 -> PAOLA A CHINCHILLA
C8: CUADRO NO. 1
A9: N° | B9: Rank | C9: NOMBRE | E9: Liga | I9: 1 | O9: 2 | U9: 3 | AA9: 4 | AD9: PUNTOS | AE9: % SETS | AF9: % GAMES | AG9: PUESTO
A10: 1 | B10: =UPPER(IF($D10="","",VLOOKUP($D10,#REF!,7))) ->  | C10: ANDRES ALMEYDA ORTIZ | E10: PN | L10: 4 | M10: 6 | N10: 6 | O10: 1 | P10: 8 | Q10: 10 | R10: 6 | S10: 0 | T10: 6 | U10: 0 | AE10: =((IF(AND(R10>5,S10<7),1,0)+IF(AND(T10>5,U10<7),1,0)+IF(AND(V10>5,W10<7),1,0)+IF(AND(L10>5,M10<7),1,0)+IF(AND(N10>5,O10<7),1,0)+IF(AND(P10>5,Q10<7),1,0)+IF(AND(X10>5,Y10<7),1,0)+IF(AND(Z10>5,AA10<7),1,0)+IF(AND(AB10>5,AC10<7),1,0))/(COUNTIF(R10,">=0")+COUNTIF(T10,">=0")+COUNTIF(V10,">=0")+COUNTIF(X10,">=0")+COUNTIF(Z10,">=0")+COUNTIF(AB10,">=0")++COUNTIF(L10,">=0")+COUNTIF(N10,">=0")+COUNTIF(P10,">=0")))*100 -> 60 | AF10: =((L10+N10+P10+R10+T10+V10+X10+Z10+AB10)/(L10+M10+N10+O10+P10+Q10+R10+S10+T10+U10+V10+W10+X10+Y10+Z10+AA10+AB10+AC10))*100 -> 63.82978723
A11: 2 | B11: =UPPER(IF($D11="","",VLOOKUP($D11,#REF!,7))) ->  | C11: SEIDER GUTIERREZ CORTES | E11: UTS | F11: 6 | G11: 4 | H11: 1 | I11: 6 | J11: 10 | K11: 8 | R11: 3 | S11: 6 | T11: 6 | U11: 4 | V11: 10 | W11: 4 | X11: 6 | Y11: 1 | Z11: 6 | AA11: 1 | AE11: =((IF(AND(F11>5,G11<7),1,0)+IF(AND(H11>5,I11<7),1,0)+IF(AND(J11>5,K11<7),1,0)+IF(AND(R11>5,S11<7),1,0)+IF(AND(T11>5,U11<7),1,0)+IF(AND(V11>5,W11<7),1,0)+IF(AND(X11>5,Y11<7),1,0)+IF(AND(Z11>5,AA11<7),1,0)+IF(AND(AB11>5,AC11<7),1,0))/(COUNTIF(F11,">=0")+COUNTIF(H11,">=0")+COUNTIF(J11,">=0")+COUNTIF(X11,">=0")+COUNTIF(Z11,">=0")+COUNTIF(AB11,">=0")+COUNTIF(R11,">=0")+COUNTIF(T11,">=0")+COUNTIF(V11,">=0")))*100 -> 62.5 | AF11: =((F11+J11+H11+R11+T11+V11+X11+Z11+AB11)/(F11+G11+H11+I11+J11+K11+R11+S11+T11+U11+V11+W11+X11+Y11+Z11+AA11+AB11+AC11))*100 -> 58.53658537
A12: 3 | B12: =UPPER(IF($D12="","",VLOOKUP($D12,#REF!,7))) ->  | C12: OSCAR ANDRES QUINTERO | E12: IND | F12: 0 | G12: 6 | H12: 0 | I12: 6 | L12: 6 | M12: 3 | N12: 4 | O12: 6 | P12: 4 | Q12: 10 | X12: 6 | Y12: 2 | Z12: 6 | AA12: 0 | AE12: =((IF(AND(F12>5,G12<7),1,0)+IF(AND(H12>5,I12<7),1,0)+IF(AND(J12>5,K12<7),1,0)+IF(AND(L12>5,M12<7),1,0)+IF(AND(N12>5,O12<7),1,0)+IF(AND(P12>5,Q12<7),1,0)+IF(AND(X12>5,Y12<7),1,0)+IF(AND(Z12>5,AA12<7),1,0)+IF(AND(AB12>5,AC12<7),1,0))/(COUNTIF(F12,">=0")+COUNTIF(H12,">=0")+COUNTIF(J12,">=0")+COUNTIF(X12,">=0")+COUNTIF(Z12,">=0")+COUNTIF(AB12,">=0")+COUNTIF(L12,">=0")+COUNTIF(N12,">=0")+COUNTIF(P12,">=0")))*100 -> 42.85714286 | AF12: =((F12+J12+H12+L12+N12+P12+X12+Z12+AB12)/(F12+G12+H12+I12+J12+K12+L12+M12+N12+O12+P12+Q12+X12+Y12+Z12+AA12+AB12+AC12))*100 -> 44.06779661
A13: 4 | B13: =UPPER(IF($D13="","",VLOOKUP($D13,#REF!,7))) ->  | C13: ANDRES ALDANA OJEDA | E13: UNAB | L13: 1 | M13: 6 | N13: 1 | O13: 6 | R13: 2 | S13: 6 | T13: 0 | U13: 6 | AE13: =((IF(AND(F13>5,G13<7),1,0)+IF(AND(H13>5,I13<7),1,0)+IF(AND(J13>5,K13<7),1,0)+IF(AND(L13>5,M13<7),1,0)+IF(AND(N13>5,O13<7),1,0)+IF(AND(P13>5,Q13<7),1,0)+IF(AND(R13>5,S13<7),1,0)+IF(AND(T13>5,U13<7),1,0)+IF(AND(V13>5,W13<7),1,0))/(COUNTIF(F13,">=0")+COUNTIF(H13,">=0")+COUNTIF(J13,">=0")+COUNTIF(R13,">=0")+COUNTIF(T13,">=0")+COUNTIF(V13,">=0")++COUNTIF(L13,">=0")+COUNTIF(N13,">=0")+COUNTIF(P13,">=0")))*100 -> 0 | AF13: =((F13+J13+H13+L13+N13+P13+R13+T13+V13)/(F13+G13+H13+I13+J13+K13+L13+M13+N13+O13+P13+Q13+R13+S13+T13+U13+V13+W13))*100 -> 14.28571429
C15: CUADRO NO. 2
A16: N° | B16: Rank | C16: NOMBRE | E16: Liga | I16: 1 | O16: 2 | U16: 3 | AA16: 4 | AD16: PUNTOS | AE16: % SETS | AF16: % GAMES | AG16: PUESTO
A17: 5 | C17: JOSE A. OJEDA MURCIA | E17: IND | L17: 6 | M17: 1 | N17: 6 | O17: 3 | X17: 6 | Y17: 3 | Z17: 6 | AA17: 2 | AE17: =((IF(AND(R17>5,S17<7),1,0)+IF(AND(T17>5,U17<7),1,0)+IF(AND(V17>5,W17<7),1,0)+IF(AND(L17>5,M17<7),1,0)+IF(AND(N17>5,O17<7),1,0)+IF(AND(P17>5,Q17<7),1,0)+IF(AND(X17>5,Y17<7),1,0)+IF(AND(Z17>5,AA17<7),1,0)+IF(AND(AB17>5,AC17<7),1,0))/(COUNTIF(R17,">=0")+COUNTIF(T17,">=0")+COUNTIF(V17,">=0")+COUNTIF(X17,">=0")+COUNTIF(Z17,">=0")+COUNTIF(AB17,">=0")++COUNTIF(L17,">=0")+COUNTIF(N17,">=0")+COUNTIF(P17,">=0")))*100 -> 100 | AF17: =((L17+N17+P17+R17+T17+V17+X17+Z17+AB17)/(L17+M17+N17+O17+P17+Q17+R17+S17+T17+U17+V17+W17+X17+Y17+Z17+AA17+AB17+AC17))*100 -> 72.72727273
A18: 6 | C18: JAIME ANDRES VILLAMIL | E18: SOC | F18: 1 | G18: 6 | H18: 3 | I18: 6 | R18: 6 | S18: 1 | T18: 6 | U18: 2 | X18: 6 | Y18: 3 | Z18: 6 | AA18: 1 | AE18: =((IF(AND(F18>5,G18<7),1,0)+IF(AND(H18>5,I18<7),1,0)+IF(AND(J18>5,K18<7),1,0)+IF(AND(R18>5,S18<7),1,0)+IF(AND(T18>5,U18<7),1,0)+IF(AND(V18>5,W18<7),1,0)+IF(AND(X18>5,Y18<7),1,0)+IF(AND(Z18>5,AA18<7),1,0)+IF(AND(AB18>5,AC18<7),1,0))/(COUNTIF(F18,">=0")+COUNTIF(H18,">=0")+COUNTIF(J18,">=0")+COUNTIF(X18,">=0")+COUNTIF(Z18,">=0")+COUNTIF(AB18,">=0")+COUNTIF(R18,">=0")+COUNTIF(T18,">=0")+COUNTIF(V18,">=0")))*100 -> 66.66666667 | AF18: =((F18+J18+H18+R18+T18+V18+X18+Z18+AB18)/(F18+G18+H18+I18+J18+K18+R18+S18+T18+U18+V18+W18+X18+Y18+Z18+AA18+AB18+AC18))*100 -> 59.57446809
A19: 7 | C19: JERONIMO GARCIA | E19: PN | L19: 1 | M19: 6 | N19: 2 | O19: 6 | X19: 0 | Y19: 6 | Z19: 0 | AA19: 6 | AE19: =((IF(AND(F19>5,G19<7),1,0)+IF(AND(H19>5,I19<7),1,0)+IF(AND(J19>5,K19<7),1,0)+IF(AND(L19>5,M19<7),1,0)+IF(AND(N19>5,O19<7),1,0)+IF(AND(P19>5,Q19<7),1,0)+IF(AND(X19>5,Y19<7),1,0)+IF(AND(Z19>5,AA19<7),1,0)+IF(AND(AB19>5,AC19<7),1,0))/(COUNTIF(F19,">=0")+COUNTIF(H19,">=0")+COUNTIF(J19,">=0")+COUNTIF(X19,">=0")+COUNTIF(Z19,">=0")+COUNTIF(AB19,">=0")+COUNTIF(L19,">=0")+COUNTIF(N19,">=0")+COUNTIF(P19,">=0")))*100 -> 0 | AF19: =((F19+J19+H19+L19+N19+P19+X19+Z19+AB19)/(F19+G19+H19+I19+J19+K19+L19+M19+N19+O19+P19+Q19+X19+Y19+Z19+AA19+AB19+AC19))*100 -> 11.11111111
A20: 8 | C20: KAREN DAYANA PARADA MATEUS | E20: UNAB | F20: 3 | G20: 6 | H20: 2 | I20: 6 | L20: 3 | M20: 6 | N20: 1 | O20: 6 | R20: 6 | S20: 0 | T20: 6 | U20: 0 | AE20: =((IF(AND(F20>5,G20<7),1,0)+IF(AND(H20>5,I20<7),1,0)+IF(AND(J20>5,K20<7),1,0)+IF(AND(L20>5,M20<7),1,0)+IF(AND(N20>5,O20<7),1,0)+IF(AND(P20>5,Q20<7),1,0)+IF(AND(R20>5,S20<7),1,0)+IF(AND(T20>5,U20<7),1,0)+IF(AND(V20>5,W20<7),1,0))/(COUNTIF(F20,">=0")+COUNTIF(H20,">=0")+COUNTIF(J20,">=0")+COUNTIF(R20,">=0")+COUNTIF(T20,">=0")+COUNTIF(V20,">=0")++COUNTIF(L20,">=0")+COUNTIF(N20,">=0")+COUNTIF(P20,">=0")))*100 -> 33.33333333 | AF20: =((F20+J20+H20+L20+N20+P20+R20+T20+V20)/(F20+G20+H20+I20+J20+K20+L20+M20+N20+O20+P20+Q20+R20+S20+T20+U20+V20+W20))*100 -> 46.66666667
C22: CUADRO NO. 3
A23: N° | B23: Rank | C23: NOMBRE | E23: Liga | I23: 1 | O23: 2 | U23: 3 | AA23: 4 | AD23: PUNTOS | AE23: % SETS | AF23: % GAMES | AG23: PUESTO
A24: 9 | B24: =UPPER(IF($D24="","",VLOOKUP($D24,#REF!,7))) ->  | C24: CARLOS A. GONZALEZ | E24: SCC | L24: 6 | M24: 0 | N24: 6 | O24: 0 | R24: 6 | S24: 4 | T24: 6 | U24: 0 | X24: 6 | Y24: 0 | Z24: 6 | AA24: 2 | AE24: =((IF(AND(R24>5,S24<7),1,0)+IF(AND(T24>5,U24<7),1,0)+IF(AND(V24>5,W24<7),1,0)+IF(AND(L24>5,M24<7),1,0)+IF(AND(N24>5,O24<7),1,0)+IF(AND(P24>5,Q24<7),1,0)+IF(AND(X24>5,Y24<7),1,0)+IF(AND(Z24>5,AA24<7),1,0)+IF(AND(AB24>5,AC24<7),1,0))/(COUNTIF(R24,">=0")+COUNTIF(T24,">=0")+COUNTIF(V24,">=0")+COUNTIF(X24,">=0")+COUNTIF(Z24,">=0")+COUNTIF(AB24,">=0")++COUNTIF(L24,">=0")+COUNTIF(N24,">=0")+COUNTIF(P24,">=0")))*100 -> 100 | AF24: =((L24+N24+P24+R24+T24+V24+X24+Z24+AB24)/(L24+M24+N24+O24+P24+Q24+R24+S24+T24+U24+V24+W24+X24+Y24+Z24+AA24+AB24+AC24))*100 -> 85.71428571
A25: 10 | B25: =UPPER(IF($D25="","",VLOOKUP($D25,#REF!,7))) ->  | C25: CAROLINA ZAMBRANO | E25: LT | F25: 0 | G25: 6 | H25: 0 | I25: 6 | X25: 2 | Y25: 6 | Z25: 3 | AA25: 6 | AE25: =((IF(AND(F25>5,G25<7),1,0)+IF(AND(H25>5,I25<7),1,0)+IF(AND(J25>5,K25<7),1,0)+IF(AND(R25>5,S25<7),1,0)+IF(AND(T25>5,U25<7),1,0)+IF(AND(V25>5,W25<7),1,0)+IF(AND(X25>5,Y25<7),1,0)+IF(AND(Z25>5,AA25<7),1,0)+IF(AND(AB25>5,AC25<7),1,0))/(COUNTIF(F25,">=0")+COUNTIF(H25,">=0")+COUNTIF(J25,">=0")+COUNTIF(X25,">=0")+COUNTIF(Z25,">=0")+COUNTIF(AB25,">=0")+COUNTIF(R25,">=0")+COUNTIF(T25,">=0")+COUNTIF(V25,">=0")))*100 -> 0 | AF25: =((F25+J25+H25+R25+T25+V25+X25+Z25+AB25)/(F25+G25+H25+I25+J25+K25+R25+S25+T25+U25+V25+W25+X25+Y25+Z25+AA25+AB25+AC25))*100 -> 17.24137931
A26: 11 | B26: =UPPER(IF($D26="","",VLOOKUP($D26,#REF!,7))) ->  | C26: VICTOR A. ACUÑA | E26: PM | F26: 4 | G26: 6 | H26: 0 | I26: 6 | X26: 3 | Y26: 6 | Z26: 5 | AA26: 7 | AE26: =((IF(AND(F26>5,G26<7),1,0)+IF(AND(H26>5,I26<7),1,0)+IF(AND(J26>5,K26<7),1,0)+IF(AND(L26>5,M26<7),1,0)+IF(AND(N26>5,O26<7),1,0)+IF(AND(P26>5,Q26<7),1,0)+IF(AND(X26>5,Y26<7),1,0)+IF(AND(Z26>5,AA26<7),1,0)+IF(AND(AB26>5,AC26<7),1,0))/(COUNTIF(F26,">=0")+COUNTIF(H26,">=0")+COUNTIF(J26,">=0")+COUNTIF(X26,">=0")+COUNTIF(Z26,">=0")+COUNTIF(AB26,">=0")+COUNTIF(L26,">=0")+COUNTIF(N26,">=0")+COUNTIF(P26,">=0")))*100 -> 0 | AF26: =((F26+J26+H26+L26+N26+P26+X26+Z26+AB26)/(F26+G26+H26+I26+J26+K26+L26+M26+N26+O26+P26+Q26+X26+Y26+Z26+AA26+AB26+AC26))*100 -> 32.43243243
A27: 12 | B27: =UPPER(IF($D27="","",VLOOKUP($D27,#REF!,7))) ->  | C27: OSCAR FELIPE VILLANUEVA A. | E27: IND | F27: 0 | G27: 6 | H27: 2 | I27: 6 | L27: 6 | M27: 2 | N27: 6 | O27: 3 | R27: 6 | S27: 3 | T27: 7 | U27: 5 | AE27: =((IF(AND(F27>5,G27<7),1,0)+IF(AND(H27>5,I27<7),1,0)+IF(AND(J27>5,K27<7),1,0)+IF(AND(L27>5,M27<7),1,0)+IF(AND(N27>5,O27<7),1,0)+IF(AND(P27>5,Q27<7),1,0)+IF(AND(R27>5,S27<7),1,0)+IF(AND(T27>5,U27<7),1,0)+IF(AND(V27>5,W27<7),1,0))/(COUNTIF(F27,">=0")+COUNTIF(H27,">=0")+COUNTIF(J27,">=0")+COUNTIF(R27,">=0")+COUNTIF(T27,">=0")+COUNTIF(V27,">=0")++COUNTIF(L27,">=0")+COUNTIF(N27,">=0")+COUNTIF(P27,">=0")))*100 -> 66.66666667 | AF27: =((F27+J27+H27+L27+N27+P27+R27+T27+V27)/(F27+G27+H27+I27+J27+K27+L27+M27+N27+O27+P27+Q27+R27+S27+T27+U27+V27+W27))*100 -> 51.92307692
C29: CUADRO NO. 4
A30: N° | B30: Rank | C30: NOMBRE | E30: Liga | I30: 1 | O30: 2 | U30: 3 | AA30: 4 | AD30: PUNTOS | AE30: % SETS | AF30: % GAMES | AG30: PUESTO
A31: 13 | B31: =UPPER(IF($D31="","",VLOOKUP($D31,#REF!,7))) ->  | C31: FABIAN FARFAN | E31: IND | L31: 6 | M31: 3 | N31: 6 | O31: 4 | R31: 6 | S31: 3 | T31: 5 | U31: 7 | V31: 4 | W31: 10 | AE31: =((IF(AND(R31>5,S31<7),1,0)+IF(AND(T31>5,U31<7),1,0)+IF(AND(V31>5,W31<7),1,0)+IF(AND(L31>5,M31<7),1,0)+IF(AND(N31>5,O31<7),1,0)+IF(AND(P31>5,Q31<7),1,0)+IF(AND(X31>5,Y31<7),1,0)+IF(AND(Z31>5,AA31<7),1,0)+IF(AND(AB31>5,AC31<7),1,0))/(COUNTIF(R31,">=0")+COUNTIF(T31,">=0")+COUNTIF(V31,">=0")+COUNTIF(X31,">=0")+COUNTIF(Z31,">=0")+COUNTIF(AB31,">=0")++COUNTIF(L31,">=0")+COUNTIF(N31,">=0")+COUNTIF(P31,">=0")))*100 -> 60 | AF31: =((L31+N31+P31+R31+T31+V31+X31+Z31+AB31)/(L31+M31+N31+O31+P31+Q31+R31+S31+T31+U31+V31+W31+X31+Y31+Z31+AA31+AB31+AC31))*100 -> 50
A32: 14 | B32: =UPPER(IF($D32="","",VLOOKUP($D32,#REF!,7))) ->  | C32: MARIA VALENTINA ARDILA | E32: LT | F32: 3 | G32: 6 | H32: 4 | I32: 6 | R32: 0 | S32: 6 | T32: 0 | U32: 6 | AE32: =((IF(AND(F32>5,G32<7),1,0)+IF(AND(H32>5,I32<7),1,0)+IF(AND(J32>5,K32<7),1,0)+IF(AND(R32>5,S32<7),1,0)+IF(AND(T32>5,U32<7),1,0)+IF(AND(V32>5,W32<7),1,0)+IF(AND(X32>5,Y32<7),1,0)+IF(AND(Z32>5,AA32<7),1,0)+IF(AND(AB32>5,AC32<7),1,0))/(COUNTIF(F32,">=0")+COUNTIF(H32,">=0")+COUNTIF(J32,">=0")+COUNTIF(X32,">=0")+COUNTIF(Z32,">=0")+COUNTIF(AB32,">=0")+COUNTIF(R32,">=0")+COUNTIF(T32,">=0")+COUNTIF(V32,">=0")))*100 -> 0 | AF32: =((F32+J32+H32+R32+T32+V32+X32+Z32+AB32)/(F32+G32+H32+I32+J32+K32+R32+S32+T32+U32+V32+W32+X32+Y32+Z32+AA32+AB32+AC32))*100 -> 22.58064516
A33: 15 | B33: =UPPER(IF($D33="","",VLOOKUP($D33,#REF!,7))) ->  | C33: CESAR A. HERNANDEZ CALDERON | E33: FT | F33: 3 | G33: 6 | H33: 7 | I33: 5 | J33: 10 | K33: 4 | L33: 6 | M33: 0 | N33: 6 | O33: 0 | X33: 6 | Y33: 1 | Z33: 6 | AA33: 3 | AE33: =((IF(AND(F33>5,G33<7),1,0)+IF(AND(H33>5,I33<7),1,0)+IF(AND(J33>5,K33<7),1,0)+IF(AND(L33>5,M33<7),1,0)+IF(AND(N33>5,O33<7),1,0)+IF(AND(P33>5,Q33<7),1,0)+IF(AND(X33>5,Y33<7),1,0)+IF(AND(Z33>5,AA33<7),1,0)+IF(AND(AB33>5,AC33<7),1,0))/(COUNTIF(F33,">=0")+COUNTIF(H33,">=0")+COUNTIF(J33,">=0")+COUNTIF(X33,">=0")+COUNTIF(Z33,">=0")+COUNTIF(AB33,">=0")+COUNTIF(L33,">=0")+COUNTIF(N33,">=0")+COUNTIF(P33,">=0")))*100 -> 85.71428571 | AF33: =((F33+J33+H33+L33+N33+P33+X33+Z33+AB33)/(F33+G33+H33+I33+J33+K33+L33+M33+N33+O33+P33+Q33+X33+Y33+Z33+AA33+AB33+AC33))*100 -> 69.84126984
A34: 16 | B34: =UPPER(IF($D34="","",VLOOKUP($D34,#REF!,7))) ->  | C34: MIGUEL ANGEL MEDINA | E34: CH | R34: 1 | S34: 6 | T34: 3 | U34: 6 | AE34: =((IF(AND(F34>5,G34<7),1,0)+IF(AND(H34>5,I34<7),1,0)+IF(AND(J34>5,K34<7),1,0)+IF(AND(L34>5,M34<7),1,0)+IF(AND(N34>5,O34<7),1,0)+IF(AND(P34>5,Q34<7),1,0)+IF(AND(R34>5,S34<7),1,0)+IF(AND(T34>5,U34<7),1,0)+IF(AND(V34>5,W34<7),1,0))/(COUNTIF(F34,">=0")+COUNTIF(H34,">=0")+COUNTIF(J34,">=0")+COUNTIF(R34,">=0")+COUNTIF(T34,">=0")+COUNTIF(V34,">=0")++COUNTIF(L34,">=0")+COUNTIF(N34,">=0")+COUNTIF(P34,">=0")))*100 -> 0 | AF34: =((F34+J34+H34+L34+N34+P34+R34+T34+V34)/(F34+G34+H34+I34+J34+K34+L34+M34+N34+O34+P34+Q34+R34+S34+T34+U34+V34+W34))*100 -> 25

Sheet Round Robin (3)
E1: SENCILLOS CUADRO DE ROUND ROBIN
A2: Torneo | E2: =Maestra!A10 -> 2DO RANKING DEPARTAMENTAL 2020
A3: Sede | E3: =Maestra!A14 -> LIGA SANTANDEREANA DE TENIS
A4: Clase | E4: =Maestra!E10 -> SENCILLOS
A5: Ciudad | E5: =Maestra!E14 -> BUCARAMANGA
A6: Categoría | E6: =Maestra!H10 -> TERCERA
A7: Fecha | C7: =Maestra!H14 -> 17 OCT - 02 NOV | H7: COORDINADORA | AD7: =Maestra!A18 -> PAOLA A CHINCHILLA
C8: CUADRO NO. 5
A9: N° | B9: Rank | C9: NOMBRE | E9: Liga | I9: 1 | O9: 2 | U9: 3 | AA9: 4 | AD9: PUNTOS | AE9: % SETS | AF9: % GAMES | AG9: PUESTO
A10: 17 | C10: ANDRES FERNANDO PEÑA | E10: CU | L10: 6 | M10: 7 | N10: 2 | O10: 6 | R10: 6 | S10: 3 | T10: 1 | U10: 6 | V10: 9 | W10: 10 | AE10: =((IF(AND(R10>5,S10<7),1,0)+IF(AND(T10>5,U10<7),1,0)+IF(AND(V10>5,W10<7),1,0)+IF(AND(L10>5,M10<7),1,0)+IF(AND(N10>5,O10<7),1,0)+IF(AND(P10>5,Q10<7),1,0)+IF(AND(X10>5,Y10<7),1,0)+IF(AND(Z10>5,AA10<7),1,0)+IF(AND(AB10>5,AC10<7),1,0))/(COUNTIF(R10,">=0")+COUNTIF(T10,">=0")+COUNTIF(V10,">=0")+COUNTIF(X10,">=0")+COUNTIF(Z10,">=0")+COUNTIF(AB10,">=0")++COUNTIF(L10,">=0")+COUNTIF(N10,">=0")+COUNTIF(P10,">=0")))*100 -> 20 | AF10: =((L10+N10+P10+R10+T10+V10+X10+Z10+AB10)/(L10+M10+N10+O10+P10+Q10+R10+S10+T10+U10+V10+W10+X10+Y10+Z10+AA10+AB10+AC10))*100 -> 42.85714286
A11: 18 | C11: OSCAR MERCHAN MENDEZ | E11: IND | F11: 7 | G11: 6 | H11: 6 | I11: 2 | X11: 1 | Y11: 6 | Z11: 0 | AA11: 6 | AE11: =((IF(AND(F11>5,G11<7),1,0)+IF(AND(H11>5,I11<7),1,0)+IF(AND(J11>5,K11<7),1,0)+IF(AND(R11>5,S11<7),1,0)+IF(AND(T11>5,U11<7),1,0)+IF(AND(V11>5,W11<7),1,0)+IF(AND(X11>5,Y11<7),1,0)+IF(AND(Z11>5,AA11<7),1,0)+IF(AND(AB11>5,AC11<7),1,0))/(COUNTIF(F11,">=0")+COUNTIF(H11,">=0")+COUNTIF(J11,">=0")+COUNTIF(X11,">=0")+COUNTIF(Z11,">=0")+COUNTIF(AB11,">=0")+COUNTIF(R11,">=0")+COUNTIF(T11,">=0")+COUNTIF(V11,">=0")))*100 -> 50 | AF11: =((F11+J11+H11+R11+T11+V11+X11+Z11+AB11)/(F11+G11+H11+I11+J11+K11+R11+S11+T11+U11+V11+W11+X11+Y11+Z11+AA11+AB11+AC11))*100 -> 41.17647059
A12: 19 | C12: SERGIO MARQUEZ | E12: FT | F12: 3 | G12: 6 | H12: 6 | I12: 1 | J12: 10 | K12: 9 | X12: 2 | Y12: 6 | Z12: 2 | AA12: 6 | AE12: =((IF(AND(F12>5,G12<7),1,0)+IF(AND(H12>5,I12<7),1,0)+IF(AND(J12>5,K12<7),1,0)+IF(AND(L12>5,M12<7),1,0)+IF(AND(N12>5,O12<7),1,0)+IF(AND(P12>5,Q12<7),1,0)+IF(AND(X12>5,Y12<7),1,0)+IF(AND(Z12>5,AA12<7),1,0)+IF(AND(AB12>5,AC12<7),1,0))/(COUNTIF(F12,">=0")+COUNTIF(H12,">=0")+COUNTIF(J12,">=0")+COUNTIF(X12,">=0")+COUNTIF(Z12,">=0")+COUNTIF(AB12,">=0")+COUNTIF(L12,">=0")+COUNTIF(N12,">=0")+COUNTIF(P12,">=0")))*100 -> 20 | AF12: =((F12+J12+H12+L12+N12+P12+X12+Z12+AB12)/(F12+G12+H12+I12+J12+K12+L12+M12+N12+O12+P12+Q12+X12+Y12+Z12+AA12+AB12+AC12))*100 -> 45.09803922
A13: 20 | C13: ROQUE PARRA SIERRA | E13: ACET | L13: 6 | M13: 1 | N13: 6 | O13: 0 | R13: 6 | S13: 2 | T13: 6 | U13: 2 | AE13: =((IF(AND(F13>5,G13<7),1,0)+IF(AND(H13>5,I13<7),1,0)+IF(AND(J13>5,K13<7),1,0)+IF(AND(L13>5,M13<7),1,0)+IF(AND(N13>5,O13<7),1,0)+IF(AND(P13>5,Q13<7),1,0)+IF(AND(R13>5,S13<7),1,0)+IF(AND(T13>5,U13<7),1,0)+IF(AND(V13>5,W13<7),1,0))/(COUNTIF(F13,">=0")+COUNTIF(H13,">=0")+COUNTIF(J13,">=0")+COUNTIF(R13,">=0")+COUNTIF(T13,">=0")+COUNTIF(V13,">=0")++COUNTIF(L13,">=0")+COUNTIF(N13,">=0")+COUNTIF(P13,">=0")))*100 -> 100 | AF13: =((F13+J13+H13+L13+N13+P13+R13+T13+V13)/(F13+G13+H13+I13+J13+K13+L13+M13+N13+O13+P13+Q13+R13+S13+T13+U13+V13+W13))*100 -> 82.75862069
C15: CUADRO NO. 6
A16: N° | B16: Rank | C16: NOMBRE | E16: Liga | I16: 1 | O16: 2 | U16: 3 | AA16: 4 | AD16: PUNTOS | AE16: % SETS | AF16: % GAMES | AG16: PUESTO
A17: 21 | C17: NELSON CORREA PACHECO | E17: USTA | L17: 6 | M17: 1 | N17: 6 | O17: 0 | X17: 3 | Y17: 6 | Z17: 0 | AA17: 6 | AE17: =((IF(AND(R17>5,S17<7),1,0)+IF(AND(T17>5,U17<7),1,0)+IF(AND(V17>5,W17<7),1,0)+IF(AND(L17>5,M17<7),1,0)+IF(AND(N17>5,O17<7),1,0)+IF(AND(P17>5,Q17<7),1,0)+IF(AND(X17>5,Y17<7),1,0)+IF(AND(Z17>5,AA17<7),1,0)+IF(AND(AB17>5,AC17<7),1,0))/(COUNTIF(R17,">=0")+COUNTIF(T17,">=0")+COUNTIF(V17,">=0")+COUNTIF(X17,">=0")+COUNTIF(Z17,">=0")+COUNTIF(AB17,">=0")++COUNTIF(L17,">=0")+COUNTIF(N17,">=0")+COUNTIF(P17,">=0")))*100 -> 50 | AF17: =((L17+N17+P17+R17+T17+V17+X17+Z17+AB17)/(L17+M17+N17+O17+P17+Q17+R17+S17+T17+U17+V17+W17+X17+Y17+Z17+AA17+AB17+AC17))*100 -> 53.57142857
A18: 22 | C18: ANDRES F. BARRERA | E18: RT | F18: 0 | G18: 6 | H18: 1 | I18: 6 | AE18: =((IF(AND(F18>5,G18<7),1,0)+IF(AND(H18>5,I18<7),1,0)+IF(AND(J18>5,K18<7),1,0)+IF(AND(R18>5,S18<7),1,0)+IF(AND(T18>5,U18<7),1,0)+IF(AND(V18>5,W18<7),1,0)+IF(AND(X18>5,Y18<7),1,0)+IF(AND(Z18>5,AA18<7),1,0)+IF(AND(AB18>5,AC18<7),1,0))/(COUNTIF(F18,">=0")+COUNTIF(H18,">=0")+COUNTIF(J18,">=0")+COUNTIF(X18,">=0")+COUNTIF(Z18,">=0")+COUNTIF(AB18,">=0")+COUNTIF(R18,">=0")+COUNTIF(T18,">=0")+COUNTIF(V18,">=0")))*100 -> 0 | AF18: =((F18+J18+H18+R18+T18+V18+X18+Z18+AB18)/(F18+G18+H18+I18+J18+K18+R18+S18+T18+U18+V18+W18+X18+Y18+Z18+AA18+AB18+AC18))*100 -> 7.692307692
A19: 23 | C19: JUAN DIEGO MORENO POSADA | E19: UNAB | X19: 0 | Y19: 6 | Z19: 0 | AA19: 6 | AE19: =((IF(AND(F19>5,G19<7),1,0)+IF(AND(H19>5,I19<7),1,0)+IF(AND(J19>5,K19<7),1,0)+IF(AND(L19>5,M19<7),1,0)+IF(AND(N19>5,O19<7),1,0)+IF(AND(P19>5,Q19<7),1,0)+IF(AND(X19>5,Y19<7),1,0)+IF(AND(Z19>5,AA19<7),1,0)+IF(AND(AB19>5,AC19<7),1,0))/(COUNTIF(F19,">=0")+COUNTIF(H19,">=0")+COUNTIF(J19,">=0")+COUNTIF(X19,">=0")+COUNTIF(Z19,">=0")+COUNTIF(AB19,">=0")+COUNTIF(L19,">=0")+COUNTIF(N19,">=0")+COUNTIF(P19,">=0")))*100 -> 0 | AF19: =((F19+J19+H19+L19+N19+P19+X19+Z19+AB19)/(F19+G19+H19+I19+J19+K19+L19+M19+N19+O19+P19+Q19+X19+Y19+Z19+AA19+AB19+AC19))*100 -> 0
A20: 24 | C20: DIEGO A. PARADA MATEUS | E20: UPB | F20: 6 | G20: 3 | H20: 6 | I20: 0 | R20: 6 | S20: 0 | T20: 6 | U20: 0 | AE20: =((IF(AND(F20>5,G20<7),1,0)+IF(AND(H20>5,I20<7),1,0)+IF(AND(J20>5,K20<7),1,0)+IF(AND(L20>5,M20<7),1,0)+IF(AND(N20>5,O20<7),1,0)+IF(AND(P20>5,Q20<7),1,0)+IF(AND(R20>5,S20<7),1,0)+IF(AND(T20>5,U20<7),1,0)+IF(AND(V20>5,W20<7),1,0))/(COUNTIF(F20,">=0")+COUNTIF(H20,">=0")+COUNTIF(J20,">=0")+COUNTIF(R20,">=0")+COUNTIF(T20,">=0")+COUNTIF(V20,">=0")++COUNTIF(L20,">=0")+COUNTIF(N20,">=0")+COUNTIF(P20,">=0")))*100 -> 100 | AF20: =((F20+J20+H20+L20+N20+P20+R20+T20+V20)/(F20+G20+H20+I20+J20+K20+L20+M20+N20+O20+P20+Q20+R20+S20+T20+U20+V20+W20))*100 -> 88.88888889
C22: CUADRO NO. 7
A23: N° | B23: Rank | C23: NOMBRE | E23: Liga | I23: 1 | O23: 2 | U23: 3 | AA23: 4 | AD23: PUNTOS | AE23: % SETS | AF23: % GAMES | AG23: PUESTO
A24: 25 | B24: =UPPER(IF($D24="","",VLOOKUP($D24,#REF!,7))) ->  | C24: CARLOS A. QUIROZ | E24: IND | L24: 2 | M24: 6 | N24: 4 | O24: 6 | R24: 0 | S24: 6 | T24: 2 | U24: 6 | AE24: =((IF(AND(R24>5,S24<7),1,0)+IF(AND(T24>5,U24<7),1,0)+IF(AND(V24>5,W24<7),1,0)+IF(AND(L24>5,M24<7),1,0)+IF(AND(N24>5,O24<7),1,0)+IF(AND(P24>5,Q24<7),1,0)+IF(AND(X24>5,Y24<7),1,0)+IF(AND(Z24>5,AA24<7),1,0)+IF(AND(AB24>5,AC24<7),1,0))/(COUNTIF(R24,">=0")+COUNTIF(T24,">=0")+COUNTIF(V24,">=0")+COUNTIF(X24,">=0")+COUNTIF(Z24,">=0")+COUNTIF(AB24,">=0")++COUNTIF(L24,">=0")+COUNTIF(N24,">=0")+COUNTIF(P24,">=0")))*100 -> 0 | AF24: =((L24+N24+P24+R24+T24+V24+X24+Z24+AB24)/(L24+M24+N24+O24+P24+Q24+R24+S24+T24+U24+V24+W24+X24+Y24+Z24+AA24+AB24+AC24))*100 -> 25
A25: 26 | B25: =UPPER(IF($D25="","",VLOOKUP($D25,#REF!,7))) ->  | C25: MIGUEL BECERRA | E25: COMF | F25: 6 | G25: 2 | H25: 6 | I25: 4 | X25: 2 | Y25: 6 | Z25: 2 | AA25: 6 | AE25: =((IF(AND(F25>5,G25<7),1,0)+IF(AND(H25>5,I25<7),1,0)+IF(AND(J25>5,K25<7),1,0)+IF(AND(R25>5,S25<7),1,0)+IF(AND(T25>5,U25<7),1,0)+IF(AND(V25>5,W25<7),1,0)+IF(AND(X25>5,Y25<7),1,0)+IF(AND(Z25>5,AA25<7),1,0)+IF(AND(AB25>5,AC25<7),1,0))/(COUNTIF(F25,">=0")+COUNTIF(H25,">=0")+COUNTIF(J25,">=0")+COUNTIF(X25,">=0")+COUNTIF(Z25,">=0")+COUNTIF(AB25,">=0")+COUNTIF(R25,">=0")+COUNTIF(T25,">=0")+COUNTIF(V25,">=0")))*100 -> 50 | AF25: =((F25+J25+H25+R25+T25+V25+X25+Z25+AB25)/(F25+G25+H25+I25+J25+K25+R25+S25+T25+U25+V25+W25+X25+Y25+Z25+AA25+AB25+AC25))*100 -> 47.05882353
A26: 27 | B26: =UPPER(IF($D26="","",VLOOKUP($D26,#REF!,7))) ->  | C26: MIGUEL A. SANCHEZ | E26: CH | F26: 6 | G26: 0 | H26: 6 | I26: 2 | X26: 3 | Y26: 6 | Z26: 2 | AA26: 6 | AE26: =((IF(AND(F26>5,G26<7),1,0)+IF(AND(H26>5,I26<7),1,0)+IF(AND(J26>5,K26<7),1,0)+IF(AND(L26>5,M26<7),1,0)+IF(AND(N26>5,O26<7),1,0)+IF(AND(P26>5,Q26<7),1,0)+IF(AND(X26>5,Y26<7),1,0)+IF(AND(Z26>5,AA26<7),1,0)+IF(AND(AB26>5,AC26<7),1,0))/(COUNTIF(F26,">=0")+COUNTIF(H26,">=0")+COUNTIF(J26,">=0")+COUNTIF(X26,">=0")+COUNTIF(Z26,">=0")+COUNTIF(AB26,">=0")+COUNTIF(L26,">=0")+COUNTIF(N26,">=0")+COUNTIF(P26,">=0")))*100 -> 50 | AF26: =((F26+J26+H26+L26+N26+P26+X26+Z26+AB26)/(F26+G26+H26+I26+J26+K26+L26+M26+N26+O26+P26+Q26+X26+Y26+Z26+AA26+AB26+AC26))*100 -> 54.83870968
A27: 28 | B27: =UPPER(IF($D27="","",VLOOKUP($D27,#REF!,7))) ->  | C27: JUAN GONZALO ARENAS | E27: IND | L27: 6 | M27: 2 | N27: 6 | O27: 2 | R27: 6 | S27: 3 | T27: 6 | U27: 2 | AE27: =((IF(AND(F27>5,G27<7),1,0)+IF(AND(H27>5,I27<7),1,0)+IF(AND(J27>5,K27<7),1,0)+IF(AND(L27>5,M27<7),1,0)+IF(AND(N27>5,O27<7),1,0)+IF(AND(P27>5,Q27<7),1,0)+IF(AND(R27>5,S27<7),1,0)+IF(AND(T27>5,U27<7),1,0)+IF(AND(V27>5,W27<7),1,0))/(COUNTIF(F27,">=0")+COUNTIF(H27,">=0")+COUNTIF(J27,">=0")+COUNTIF(R27,">=0")+COUNTIF(T27,">=0")+COUNTIF(V27,">=0")++COUNTIF(L27,">=0")+COUNTIF(N27,">=0")+COUNTIF(P27,">=0")))*100 -> 100 | AF27: =((F27+J27+H27+L27+N27+P27+R27+T27+V27)/(F27+G27+H27+I27+J27+K27+L27+M27+N27+O27+P27+Q27+R27+S27+T27+U27+V27+W27))*100 -> 72.72727273
C29: CUADRO NO. 8
A30: N° | B30: Rank | C30: NOMBRE | E30: Liga | I30: 1 | O30: 2 | U30: 3 | AA30: 4 | AD30: PUNTOS | AE30: % SETS | AF30: % GAMES | AG30: PUESTO
A31: 29 | C31: JOSE FERNANDO DUARTE | E31: IND | L31: 4 | M31: 6 | N31: 2 | O31: 6 | R31: 6 | S31: 0 | T31: 6 | U31: 2 | AE31: =((IF(AND(R31>5,S31<7),1,0)+IF(AND(T31>5,U31<7),1,0)+IF(AND(V31>5,W31<7),1,0)+IF(AND(L31>5,M31<7),1,0)+IF(AND(N31>5,O31<7),1,0)+IF(AND(P31>5,Q31<7),1,0)+IF(AND(X31>5,Y31<7),1,0)+IF(AND(Z31>5,AA31<7),1,0)+IF(AND(AB31>5,AC31<7),1,0))/(COUNTIF(R31,">=0")+COUNTIF(T31,">=0")+COUNTIF(V31,">=0")+COUNTIF(X31,">=0")+COUNTIF(Z31,">=0")+COUNTIF(AB31,">=0")++COUNTIF(L31,">=0")+COUNTIF(N31,">=0")+COUNTIF(P31,">=0")))*100 -> 50 | AF31: =((L31+N31+P31+R31+T31+V31+X31+Z31+AB31)/(L31+M31+N31+O31+P31+Q31+R31+S31+T31+U31+V31+W31+X31+Y31+Z31+AA31+AB31+AC31))*100 -> 56.25
A32: 30 | C32: SAMUEL DAVID BOTELLO | E32: USTA | F32: 6 | G32: 4 | H32: 6 | I32: 2 | R32: 6 | S32: 2 | T32: 7 | U32: 5 | X32: 6 | Y32: 0 | Z32: 6 | AA32: 2 | AE32: =((IF(AND(F32>5,G32<7),1,0)+IF(AND(H32>5,I32<7),1,0)+IF(AND(J32>5,K32<7),1,0)+IF(AND(R32>5,S32<7),1,0)+IF(AND(T32>5,U32<7),1,0)+IF(AND(V32>5,W32<7),1,0)+IF(AND(X32>5,Y32<7),1,0)+IF(AND(Z32>5,AA32<7),1,0)+IF(AND(AB32>5,AC32<7),1,0))/(COUNTIF(F32,">=0")+COUNTIF(H32,">=0")+COUNTIF(J32,">=0")+COUNTIF(X32,">=0")+COUNTIF(Z32,">=0")+COUNTIF(AB32,">=0")+COUNTIF(R32,">=0")+COUNTIF(T32,">=0")+COUNTIF(V32,">=0")))*100 -> 100 | AF32: =((F32+J32+H32+R32+T32+V32+X32+Z32+AB32)/(F32+G32+H32+I32+J32+K32+R32+S32+T32+U32+V32+W32+X32+Y32+Z32+AA32+AB32+AC32))*100 -> 71.15384615
A33: 31 | C33: WILMER MOJICA GOMEZ | E33: LT | F33: 0 | G33: 6 | H33: 2 | I33: 6 | L33: 2 | M33: 6 | N33: 5 | O33: 7 | X33: 6 | Y33: 0 | Z33: 6 | AA33: 0 | AE33: =((IF(AND(F33>5,G33<7),1,0)+IF(AND(H33>5,I33<7),1,0)+IF(AND(J33>5,K33<7),1,0)+IF(AND(L33>5,M33<7),1,0)+IF(AND(N33>5,O33<7),1,0)+IF(AND(P33>5,Q33<7),1,0)+IF(AND(X33>5,Y33<7),1,0)+IF(AND(Z33>5,AA33<7),1,0)+IF(AND(AB33>5,AC33<7),1,0))/(COUNTIF(F33,">=0")+COUNTIF(H33,">=0")+COUNTIF(J33,">=0")+COUNTIF(X33,">=0")+COUNTIF(Z33,">=0")+COUNTIF(AB33,">=0")+COUNTIF(L33,">=0")+COUNTIF(N33,">=0")+COUNTIF(P33,">=0")))*100 -> 33.33333333 | AF33: =((F33+J33+H33+L33+N33+P33+X33+Z33+AB33)/(F33+G33+H33+I33+J33+K33+L33+M33+N33+O33+P33+Q33+X33+Y33+Z33+AA33+AB33+AC33))*100 -> 45.65217391
A34: 32 | C34: LUISA JULIANA CARRILLO | E34: IND | L34: 0 | M34: 6 | N34: 2 | O34: 6 | R34: 0 | S34: 6 | T34: 0 | U34: 6 | AE34: =((IF(AND(F34>5,G34<7),1,0)+IF(AND(H34>5,I34<7),1,0)+IF(AND(J34>5,K34<7),1,0)+IF(AND(L34>5,M34<7),1,0)+IF(AND(N34>5,O34<7),1,0)+IF(AND(P34>5,Q34<7),1,0)+IF(AND(R34>5,S34<7),1,0)+IF(AND(T34>5,U34<7),1,0)+IF(AND(V34>5,W34<7),1,0))/(COUNTIF(F34,">=0")+COUNTIF(H34,">=0")+COUNTIF(J34,">=0")+COUNTIF(R34,">=0")+COUNTIF(T34,">=0")+COUNTIF(V34,">=0")++COUNTIF(L34,">=0")+COUNTIF(N34,">=0")+COUNTIF(P34,">=0")))*100 -> 0 | AF34: =((F34+J34+H34+L34+N34+P34+R34+T34+V34)/(F34+G34+H34+I34+J34+K34+L34+M34+N34+O34+P34+Q34+R34+S34+T34+U34+V34+W34))*100 -> 7.692307692

Sheet Round Robin (2)
E1: SENCILLOS CUADRO DE ROUND ROBIN
A2: Torneo | E2: =Maestra!A10 -> 2DO RANKING DEPARTAMENTAL 2020
A3: Sede | E3: =Maestra!A14 -> LIGA SANTANDEREANA DE TENIS
A4: Clase | E4: =Maestra!E10 -> SENCILLOS
A5: Ciudad | E5: =Maestra!E14 -> BUCARAMANGA
A6: Categoría | E6: =Maestra!H10 -> TERCERA
A7: Fecha | C7: =Maestra!H14 -> 17 OCT - 02 NOV | H7: COORDINADORA | AJ7: =Maestra!A18 -> PAOLA A CHINCHILLA
C8: CUADRO NO. 9
A9: N° | B9: Rank | C9: NOMBRE | E9: Liga | I9: 1 | O9: 2 | U9: 3 | AA9: 4 | AG9: 5 | AJ9: PUNTOS | AK9: % SETS | AL9: % GAMES | AM9: PUESTO
A10: 33 | C10: DANIEL FERNANDO NIÑO | E10: IND | L10: 2 | M10: 6 | N10: 0 | O10: 6 | X10: 6 | Y10: 1 | Z10: 6 | AA10: 1 | AK10: =((IF(AND(R10>5,S10<7),1,0)+IF(AND(T10>5,U10<7),1,0)+IF(AND(V10>5,W10<7),1,0)+IF(AND(L10>5,M10<7),1,0)+IF(AND(N10>5,O10<7),1,0)+IF(AND(P10>5,Q10<7),1,0)+IF(AND(X10>5,Y10<7),1,0)+IF(AND(Z10>5,AA10<7),1,0)+IF(AND(AB10>5,AC10<7),1,0))/(COUNTIF(R10,">=0")+COUNTIF(T10,">=0")+COUNTIF(V10,">=0")+COUNTIF(X10,">=0")+COUNTIF(Z10,">=0")+COUNTIF(AB10,">=0")++COUNTIF(L10,">=0")+COUNTIF(N10,">=0")+COUNTIF(P10,">=0")))*100 -> 50 | AL10: =((L10+N10+P10+R10+T10+V10+X10+Z10+AB10)/(L10+M10+N10+O10+P10+Q10+R10+S10+T10+U10+V10+W10+X10+Y10+Z10+AA10+AB10+AC10))*100 -> 50
A11: 34 | C11: ISABELLA PALLARES AMAYA | E11: ACET | F11: 6 | G11: 2 | H11: 6 | I11: 0 | AD11: 6 | AE11: 0 | AF11: 4 | AG11: 6 | AH11: 7 | AI11: 10 | AK11: =((IF(AND(F11>5,G11<7),1,0)+IF(AND(H11>5,I11<7),1,0)+IF(AND(J11>5,K11<7),1,0)+IF(AND(R11>5,S11<7),1,0)+IF(AND(T11>5,U11<7),1,0)+IF(AND(V11>5,W11<7),1,0)+IF(AND(X11>5,Y11<7),1,0)+IF(AND(Z11>5,AA11<7),1,0)+IF(AND(AB11>5,AC11<7),1,0))/(COUNTIF(F11,">=0")+COUNTIF(H11,">=0")+COUNTIF(J11,">=0")+COUNTIF(X11,">=0")+COUNTIF(Z11,">=0")+COUNTIF(AB11,">=0")+COUNTIF(R11,">=0")+COUNTIF(T11,">=0")+COUNTIF(V11,">=0")))*100 -> 100 | AL11: =((F11+J11+H11+R11+T11+V11+X11+Z11+AB11)/(F11+G11+H11+I11+J11+K11+R11+S11+T11+U11+V11+W11+X11+Y11+Z11+AA11+AB11+AC11))*100 -> 85.71428571
A12: 35 | C12: RAFAEL ACEVEDO FRANCO | E12: VS | X12: 6 | Y12: 7 | Z12: 6 | AA12: 4 | AB12: 10 | AC12: 7 | AK12: =((IF(AND(F12>5,G12<7),1,0)+IF(AND(H12>5,I12<7),1,0)+IF(AND(J12>5,K12<7),1,0)+IF(AND(L12>5,M12<7),1,0)+IF(AND(N12>5,O12<7),1,0)+IF(AND(P12>5,Q12<7),1,0)+IF(AND(X12>5,Y12<7),1,0)+IF(AND(Z12>5,AA12<7),1,0)+IF(AND(AB12>5,AC12<7),1,0))/(COUNTIF(F12,">=0")+COUNTIF(H12,">=0")+COUNTIF(J12,">=0")+COUNTIF(X12,">=0")+COUNTIF(Z12,">=0")+COUNTIF(AB12,">=0")+COUNTIF(L12,">=0")+COUNTIF(N12,">=0")+COUNTIF(P12,">=0")))*100 -> 33.33333333 | AL12: =((F12+J12+H12+L12+N12+P12+X12+Z12+AB12)/(F12+G12+H12+I12+J12+K12+L12+M12+N12+O12+P12+Q12+X12+Y12+Z12+AA12+AB12+AC12))*100 -> 55
A13: 36 | C13: OSCAR SANTIAGO CASTIBLANCO | E13: LT | F13: 1 | G13: 6 | H13: 1 | I13: 6 | R13: 7 | S13: 6 | T13: 4 | U13: 6 | V13: 7 | W13: 10 | AK13: =((IF(AND(F13>5,G13<7),1,0)+IF(AND(H13>5,I13<7),1,0)+IF(AND(J13>5,K13<7),1,0)+IF(AND(L13>5,M13<7),1,0)+IF(AND(N13>5,O13<7),1,0)+IF(AND(P13>5,Q13<7),1,0)+IF(AND(R13>5,S13<7),1,0)+IF(AND(T13>5,U13<7),1,0)+IF(AND(V13>5,W13<7),1,0))/(COUNTIF(F13,">=0")+COUNTIF(H13,">=0")+COUNTIF(J13,">=0")+COUNTIF(R13,">=0")+COUNTIF(T13,">=0")+COUNTIF(V13,">=0")++COUNTIF(L13,">=0")+COUNTIF(N13,">=0")+COUNTIF(P13,">=0")))*100 -> 20 | AL13: =((F13+J13+H13+L13+N13+P13+R13+T13+V13)/(F13+G13+H13+I13+J13+K13+L13+M13+N13+O13+P13+Q13+R13+S13+T13+U13+V13+W13))*100 -> 37.03703704
A14: 37 | C14: JUAN MARTIN LOPEZ | E14: CC | L14: 0 | M14: 6 | N14: 6 | O14: 4 | P14: 10 | Q14: 7 | AK14: =((IF(AND(F14>5,G14<7),1,0)+IF(AND(H14>5,I14<7),1,0)+IF(AND(J14>5,K14<7),1,0)+IF(AND(L14>5,M14<7),1,0)+IF(AND(N14>5,O14<7),1,0)+IF(AND(P14>5,Q14<7),1,0)+IF(AND(R14>5,S14<7),1,0)+IF(AND(T14>5,U14<7),1,0)+IF(AND(V14>5,W14<7),1,0))/(COUNTIF(F14,">=0")+COUNTIF(H14,">=0")+COUNTIF(J14,">=0")+COUNTIF(R14,">=0")+COUNTIF(T14,">=0")+COUNTIF(V14,">=0")++COUNTIF(L14,">=0")+COUNTIF(N14,">=0")+COUNTIF(P14,">=0")))*100 -> 33.33333333 | AL14: =((F14+J14+H14+L14+N14+P14+R14+T14+V14)/(F14+G14+H14+I14+J14+K14+L14+M14+N14+O14+P14+Q14+R14+S14+T14+U14+V14+W14))*100 -> 48.48484848
C16: CUADRO NO. 10
A17: N° | B17: Rank | C17: NOMBRE | E17: Liga | I17: 1 | O17: 2 | U17: 3 | AA17: 4 | AG17: 4 | AJ17: PUNTOS | AK17: % SETS | AL17: % GAMES | AM17: PUESTO
A18: 37 | AK18: =((IF(AND(R18>5,S18<7),1,0)+IF(AND(T18>5,U18<7),1,0)+IF(AND(V18>5,W18<7),1,0)+IF(AND(L18>5,M18<7),1,0)+IF(AND(N18>5,O18<7),1,0)+IF(AND(P18>5,Q18<7),1,0)+IF(AND(X18>5,Y18<7),1,0)+IF(AND(Z18>5,AA18<7),1,0)+IF(AND(AB18>5,AC18<7),1,0))/(COUNTIF(R18,">=0")+COUNTIF(T18,">=0")+COUNTIF(V18,">=0")+COUNTIF(X18,">=0")+COUNTIF(Z18,">=0")+COUNTIF(AB18,">=0")++COUNTIF(L18,">=0")+COUNTIF(N18,">=0")+COUNTIF(P18,">=0")))*100 ->  | AL18: =((L18+N18+P18+R18+T18+V18+X18+Z18+AB18)/(L18+M18+N18+O18+P18+Q18+R18+S18+T18+U18+V18+W18+X18+Y18+Z18+AA18+AB18+AC18))*100 -> 
A19: 38 | AK19: =((IF(AND(F19>5,G19<7),1,0)+IF(AND(H19>5,I19<7),1,0)+IF(AND(J19>5,K19<7),1,0)+IF(AND(R19>5,S19<7),1,0)+IF(AND(T19>5,U19<7),1,0)+IF(AND(V19>5,W19<7),1,0)+IF(AND(X19>5,Y19<7),1,0)+IF(AND(Z19>5,AA19<7),1,0)+IF(AND(AB19>5,AC19<7),1,0))/(COUNTIF(F19,">=0")+COUNTIF(H19,">=0")+COUNTIF(J19,">=0")+COUNTIF(X19,">=0")+COUNTIF(Z19,">=0")+COUNTIF(AB19,">=0")+COUNTIF(R19,">=0")+COUNTIF(T19,">=0")+COUNTIF(V19,">=0")))*100 ->  | AL19: =((F19+J19+H19+R19+T19+V19+X19+Z19+AB19)/(F19+G19+H19+I19+J19+K19+R19+S19+T19+U19+V19+W19+X19+Y19+Z19+AA19+AB19+AC19))*100 -> 
A20: 39 | AK20: =((IF(AND(F20>5,G20<7),1,0)+IF(AND(H20>5,I20<7),1,0)+IF(AND(J20>5,K20<7),1,0)+IF(AND(L20>5,M20<7),1,0)+IF(AND(N20>5,O20<7),1,0)+IF(AND(P20>5,Q20<7),1,0)+IF(AND(X20>5,Y20<7),1,0)+IF(AND(Z20>5,AA20<7),1,0)+IF(AND(AB20>5,AC20<7),1,0))/(COUNTIF(F20,">=0")+COUNTIF(H20,">=0")+COUNTIF(J20,">=0")+COUNTIF(X20,">=0")+COUNTIF(Z20,">=0")+COUNTIF(AB20,">=0")+COUNTIF(L20,">=0")+COUNTIF(N20,">=0")+COUNTIF(P20,">=0")))*100 ->  | AL20: =((F20+J20+H20+L20+N20+P20+X20+Z20+AB20)/(F20+G20+H20+I20+J20+K20+L20+M20+N20+O20+P20+Q20+X20+Y20+Z20+AA20+AB20+AC20))*100 -> 
A21: 40 | AK21: =((IF(AND(F21>5,G21<7),1,0)+IF(AND(H21>5,I21<7),1,0)+IF(AND(J21>5,K21<7),1,0)+IF(AND(L21>5,M21<7),1,0)+IF(AND(N21>5,O21<7),1,0)+IF(AND(P21>5,Q21<7),1,0)+IF(AND(R21>5,S21<7),1,0)+IF(AND(T21>5,U21<7),1,0)+IF(AND(V21>5,W21<7),1,0))/(COUNTIF(F21,">=0")+COUNTIF(H21,">=0")+COUNTIF(J21,">=0")+COUNTIF(R21,">=0")+COUNTIF(T21,">=0")+COUNTIF(V21,">=0")++COUNTIF(L21,">=0")+COUNTIF(N21,">=0")+COUNTIF(P21,">=0")))*100 ->  | AL21: =((F21+J21+H21+L21+N21+P21+R21+T21+V21)/(F21+G21+H21+I21+J21+K21+L21+M21+N21+O21+P21+Q21+R21+S21+T21+U21+V21+W21))*100 -> 
C23: CUADRO NO. 11
A24: N° | B24: Rank | C24: NOMBRE | E24: Liga | I24: 1 | O24: 2 | U24: 3 | AA24: 4 | AG24: 4 | AJ24: PUNTOS | AK24: % SETS | AL24: % GAMES | AM24: PUESTO
A25: 41 | B25: =UPPER(IF($D25="","",VLOOKUP($D25,#REF!,7))) ->  | AK25: =((IF(AND(R25>5,S25<7),1,0)+IF(AND(T25>5,U25<7),1,0)+IF(AND(V25>5,W25<7),1,0)+IF(AND(L25>5,M25<7),1,0)+IF(AND(N25>5,O25<7),1,0)+IF(AND(P25>5,Q25<7),1,0)+IF(AND(X25>5,Y25<7),1,0)+IF(AND(Z25>5,AA25<7),1,0)+IF(AND(AB25>5,AC25<7),1,0))/(COUNTIF(R25,">=0")+COUNTIF(T25,">=0")+COUNTIF(V25,">=0")+COUNTIF(X25,">=0")+COUNTIF(Z25,">=0")+COUNTIF(AB25,">=0")++COUNTIF(L25,">=0")+COUNTIF(N25,">=0")+COUNTIF(P25,">=0")))*100 ->  | AL25: =((L25+N25+P25+R25+T25+V25+X25+Z25+AB25)/(L25+M25+N25+O25+P25+Q25+R25+S25+T25+U25+V25+W25+X25+Y25+Z25+AA25+AB25+AC25))*100 -> 
A26: 42 | B26: =UPPER(IF($D26="","",VLOOKUP($D26,#REF!,7))) ->  | AK26: =((IF(AND(F26>5,G26<7),1,0)+IF(AND(H26>5,I26<7),1,0)+IF(AND(J26>5,K26<7),1,0)+IF(AND(R26>5,S26<7),1,0)+IF(AND(T26>5,U26<7),1,0)+IF(AND(V26>5,W26<7),1,0)+IF(AND(X26>5,Y26<7),1,0)+IF(AND(Z26>5,AA26<7),1,0)+IF(AND(AB26>5,AC26<7),1,0))/(COUNTIF(F26,">=0")+COUNTIF(H26,">=0")+COUNTIF(J26,">=0")+COUNTIF(X26,">=0")+COUNTIF(Z26,">=0")+COUNTIF(AB26,">=0")+COUNTIF(R26,">=0")+COUNTIF(T26,">=0")+COUNTIF(V26,">=0")))*100 ->  | AL26: =((F26+J26+H26+R26+T26+V26+X26+Z26+AB26)/(F26+G26+H26+I26+J26+K26+R26+S26+T26+U26+V26+W26+X26+Y26+Z26+AA26+AB26+AC26))*100 -> 
A27: 43 | B27: =UPPER(IF($D27="","",VLOOKUP($D27,#REF!,7))) ->  | AK27: =((IF(AND(F27>5,G27<7),1,0)+IF(AND(H27>5,I27<7),1,0)+IF(AND(J27>5,K27<7),1,0)+IF(AND(L27>5,M27<7),1,0)+IF(AND(N27>5,O27<7),1,0)+IF(AND(P27>5,Q27<7),1,0)+IF(AND(X27>5,Y27<7),1,0)+IF(AND(Z27>5,AA27<7),1,0)+IF(AND(AB27>5,AC27<7),1,0))/(COUNTIF(F27,">=0")+COUNTIF(H27,">=0")+COUNTIF(J27,">=0")+COUNTIF(X27,">=0")+COUNTIF(Z27,">=0")+COUNTIF(AB27,">=0")+COUNTIF(L27,">=0")+COUNTIF(N27,">=0")+COUNTIF(P27,">=0")))*100 ->  | AL27: =((F27+J27+H27+L27+N27+P27+X27+Z27+AB27)/(F27+G27+H27+I27+J27+K27+L27+M27+N27+O27+P27+Q27+X27+Y27+Z27+AA27+AB27+AC27))*100 -> 
A28: 44 | B28: =UPPER(IF($D28="","",VLOOKUP($D28,#REF!,7))) ->  | AK28: =((IF(AND(F28>5,G28<7),1,0)+IF(AND(H28>5,I28<7),1,0)+IF(AND(J28>5,K28<7),1,0)+IF(AND(L28>5,M28<7),1,0)+IF(AND(N28>5,O28<7),1,0)+IF(AND(P28>5,Q28<7),1,0)+IF(AND(R28>5,S28<7),1,0)+IF(AND(T28>5,U28<7),1,0)+IF(AND(V28>5,W28<7),1,0))/(COUNTIF(F28,">=0")+COUNTIF(H28,">=0")+COUNTIF(J28,">=0")+COUNTIF(R28,">=0")+COUNTIF(T28,">=0")+COUNTIF(V28,">=0")++COUNTIF(L28,">=0")+COUNTIF(N28,">=0")+COUNTIF(P28,">=0")))*100 ->  | AL28: =((F28+J28+H28+L28+N28+P28+R28+T28+V28)/(F28+G28+H28+I28+J28+K28+L28+M28+N28+O28+P28+Q28+R28+S28+T28+U28+V28+W28))*100 -> 
C30: CUADRO NO. 12
A31: N° | B31: Rank | C31: NOMBRE | E31: Liga | I31: 1 | O31: 2 | U31: 3 | AA31: 4 | AG31: 4 | AJ31: PUNTOS | AK31: % SETS | AL31: % GAMES | AM31: PUESTO
A32: 45 | AK32: =((IF(AND(R32>5,S32<7),1,0)+IF(AND(T32>5,U32<7),1,0)+IF(AND(V32>5,W32<7),1,0)+IF(AND(L32>5,M32<7),1,0)+IF(AND(N32>5,O32<7),1,0)+IF(AND(P32>5,Q32<7),1,0)+IF(AND(X32>5,Y32<7),1,0)+IF(AND(Z32>5,AA32<7),1,0)+IF(AND(AB32>5,AC32<7),1,0))/(COUNTIF(R32,">=0")+COUNTIF(T32,">=0")+COUNTIF(V32,">=0")+COUNTIF(X32,">=0")+COUNTIF(Z32,">=0")+COUNTIF(AB32,">=0")++COUNTIF(L32,">=0")+COUNTIF(N32,">=0")+COUNTIF(P32,">=0")))*100 ->  | AL32: =((L32+N32+P32+R32+T32+V32+X32+Z32+AB32)/(L32+M32+N32+O32+P32+Q32+R32+S32+T32+U32+V32+W32+X32+Y32+Z32+AA32+AB32+AC32))*100 -> 
A33: 46 | AK33: =((IF(AND(F33>5,G33<7),1,0)+IF(AND(H33>5,I33<7),1,0)+IF(AND(J33>5,K33<7),1,0)+IF(AND(R33>5,S33<7),1,0)+IF(AND(T33>5,U33<7),1,0)+IF(AND(V33>5,W33<7),1,0)+IF(AND(X33>5,Y33<7),1,0)+IF(AND(Z33>5,AA33<7),1,0)+IF(AND(AB33>5,AC33<7),1,0))/(COUNTIF(F33,">=0")+COUNTIF(H33,">=0")+COUNTIF(J33,">=0")+COUNTIF(X33,">=0")+COUNTIF(Z33,">=0")+COUNTIF(AB33,">=0")+COUNTIF(R33,">=0")+COUNTIF(T33,">=0")+COUNTIF(V33,">=0")))*100 ->  | AL33: =((F33+J33+H33+R33+T33+V33+X33+Z33+AB33)/(F33+G33+H33+I33+J33+K33+R33+S33+T33+U33+V33+W33+X33+Y33+Z33+AA33+AB33+AC33))*100 -> 
A34: 47 | AK34: =((IF(AND(F34>5,G34<7),1,0)+IF(AND(H34>5,I34<7),1,0)+IF(AND(J34>5,K34<7),1,0)+IF(AND(L34>5,M34<7),1,0)+IF(AND(N34>5,O34<7),1,0)+IF(AND(P34>5,Q34<7),1,0)+IF(AND(X34>5,Y34<7),1,0)+IF(AND(Z34>5,AA34<7),1,0)+IF(AND(AB34>5,AC34<7),1,0))/(COUNTIF(F34,">=0")+COUNTIF(H34,">=0")+COUNTIF(J34,">=0")+COUNTIF(X34,">=0")+COUNTIF(Z34,">=0")+COUNTIF(AB34,">=0")+COUNTIF(L34,">=0")+COUNTIF(N34,">=0")+COUNTIF(P34,">=0")))*100 ->  | AL34: =((F34+J34+H34+L34+N34+P34+X34+Z34+AB34)/(F34+G34+H34+I34+J34+K34+L34+M34+N34+O34+P34+Q34+X34+Y34+Z34+AA34+AB34+AC34))*100 -> 
A35: 48 | AK35: =((IF(AND(F35>5,G35<7),1,0)+IF(AND(H35>5,I35<7),1,0)+IF(AND(J35>5,K35<7),1,0)+IF(AND(L35>5,M35<7),1,0)+IF(AND(N35>5,O35<7),1,0)+IF(AND(P35>5,Q35<7),1,0)+IF(AND(R35>5,S35<7),1,0)+IF(AND(T35>5,U35<7),1,0)+IF(AND(V35>5,W35<7),1,0))/(COUNTIF(F35,">=0")+COUNTIF(H35,">=0")+COUNTIF(J35,">=0")+COUNTIF(R35,">=0")+COUNTIF(T35,">=0")+COUNTIF(V35,">=0")++COUNTIF(L35,">=0")+COUNTIF(N35,">=0")+COUNTIF(P35,">=0")))*100 ->  | AL35: =((F35+J35+H35+L35+N35+P35+R35+T35+V35)/(F35+G35+H35+I35+J35+K35+L35+M35+N35+O35+P35+Q35+R35+S35+T35+U35+V35+W35))*100 -> 

Sheet Eliminación Sencilla
H1: SENCILLOS CUADRO PRINCIPAL
A2: Torneo | B2: 2DO RANKING DEPARTAMENTAL 2020 | F2: Clase | H2: Sencillos | L2: Categoría | N2: 3RA
A3: Sede | B3: Liga Santandereana de Tenis | F3: Ciudad | H3: Bucaramanga | L3: Fecha | N3: 2020-10-17
A5: 1 | B5: =UPPER(IF($D5="","",VLOOKUP($D5,#REF!,6))) ->  | C5: =UPPER(IF($D5="","",VLOOKUP($D5,#REF!,7))) -> 
A6: 2 | B6: =UPPER(IF($D6="","",VLOOKUP($D6,#REF!,6))) ->  | C6: =UPPER(IF($D6="","",VLOOKUP($D6,#REF!,7))) -> 
A7: 3 | B7: =UPPER(IF($D7="","",VLOOKUP($D7,#REF!,6))) ->  | C7: =UPPER(IF($D7="","",VLOOKUP($D7,#REF!,7))) -> 
A8: 4 | B8: =UPPER(IF($D8="","",VLOOKUP($D8,#REF!,6))) ->  | C8: =UPPER(IF($D8="","",VLOOKUP($D8,#REF!,7))) -> 
A9: 5 | B9: =UPPER(IF($D9="","",VLOOKUP($D9,#REF!,6))) ->  | C9: =UPPER(IF($D9="","",VLOOKUP($D9,#REF!,7))) -> 
A10: 6 | B10: =UPPER(IF($D10="","",VLOOKUP($D10,#REF!,6))) ->  | C10: =UPPER(IF($D10="","",VLOOKUP($D10,#REF!,7))) -> 
A11: 7 | B11: =UPPER(IF($D11="","",VLOOKUP($D11,#REF!,6))) ->  | C11: =UPPER(IF($D11="","",VLOOKUP($D11,#REF!,7))) -> 
A12: 8 | B12: =UPPER(IF($D12="","",VLOOKUP($D12,#REF!,6))) ->  | C12: =UPPER(IF($D12="","",VLOOKUP($D12,#REF!,7))) -> 
A13: 9 | B13: =UPPER(IF($D13="","",VLOOKUP($D13,#REF!,6))) ->  | C13: =UPPER(IF($D13="","",VLOOKUP($D13,#REF!,7))) -> 
A14: 10 | B14: =UPPER(IF($D14="","",VLOOKUP($D14,#REF!,6))) ->  | C14: =UPPER(IF($D14="","",VLOOKUP($D14,#REF!,7))) -> 
A15: 11 | B15: =UPPER(IF($D15="","",VLOOKUP($D15,#REF!,6))) ->  | C15: =UPPER(IF($D15="","",VLOOKUP($D15,#REF!,7))) -> 
A16: 12 | B16: =UPPER(IF($D16="","",VLOOKUP($D16,#REF!,6))) ->  | C16: =UPPER(IF($D16="","",VLOOKUP($D16,#REF!,7))) -> 
A17: 13 | B17: =UPPER(IF($D17="","",VLOOKUP($D17,#REF!,6))) ->  | C17: =UPPER(IF($D17="","",VLOOKUP($D17,#REF!,7))) -> 
A18: 14 | B18: =UPPER(IF($D18="","",VLOOKUP($D18,#REF!,6))) ->  | C18: =UPPER(IF($D18="","",VLOOKUP($D18,#REF!,7))) -> 
A19: 15 | B19: =UPPER(IF($D19="","",VLOOKUP($D19,#REF!,6))) ->  | C19: =UPPER(IF($D19="","",VLOOKUP($D19,#REF!,7))) -> 
A20: 16 | B20: =UPPER(IF($D20="","",VLOOKUP($D20,#REF!,6))) ->  | C20: =UPPER(IF($D20="","",VLOOKUP($D20,#REF!,7))) -> 
A21: 17 | B21: =UPPER(IF($D21="","",VLOOKUP($D21,#REF!,6))) ->  | C21: =UPPER(IF($D21="","",VLOOKUP($D21,#REF!,7))) -> 
A22: 18 | B22: =UPPER(IF($D22="","",VLOOKUP($D22,#REF!,6))) ->  | C22: =UPPER(IF($D22="","",VLOOKUP($D22,#REF!,7))) -> 
A23: 19 | B23: =UPPER(IF($D23="","",VLOOKUP($D23,#REF!,6))) ->  | C23: =UPPER(IF($D23="","",VLOOKUP($D23,#REF!,7))) -> 
A24: 20 | B24: =UPPER(IF($D24="","",VLOOKUP($D24,#REF!,6))) ->  | C24: =UPPER(IF($D24="","",VLOOKUP($D24,#REF!,7))) -> 
A25: 21 | B25: =UPPER(IF($D25="","",VLOOKUP($D25,#REF!,6))) ->  | C25: =UPPER(IF($D25="","",VLOOKUP($D25,#REF!,7))) -> 
A26: 22 | B26: =UPPER(IF($D26="","",VLOOKUP($D26,#REF!,6))) ->  | C26: =UPPER(IF($D26="","",VLOOKUP($D26,#REF!,7))) -> 
A27: 23 | B27: =UPPER(IF($D27="","",VLOOKUP($D27,#REF!,6))) ->  | C27: =UPPER(IF($D27="","",VLOOKUP($D27,#REF!,7))) -> 
A28: 24 | B28: =UPPER(IF($D28="","",VLOOKUP($D28,#REF!,6))) ->  | C28: =UPPER(IF($D28="","",VLOOKUP($D28,#REF!,7))) -> 
A29: 25 | B29: =UPPER(IF($D29="","",VLOOKUP($D29,#REF!,6))) ->  | C29: =UPPER(IF($D29="","",VLOOKUP($D29,#REF!,7))) -> 
A30: 26 | B30: =UPPER(IF($D30="","",VLOOKUP($D30,#REF!,6))) ->  | C30: =UPPER(IF($D30="","",VLOOKUP($D30,#REF!,7))) -> 
A31: 27 | B31: =UPPER(IF($D31="","",VLOOKUP($D31,#REF!,6))) ->  | C31: =UPPER(IF($D31="","",VLOOKUP($D31,#REF!,7))) -> 
A32: 28 | B32: =UPPER(IF($D32="","",VLOOKUP($D32,#REF!,6))) ->  | C32: =UPPER(IF($D32="","",VLOOKUP($D32,#REF!,7))) -> 
A33: 29 | B33: =UPPER(IF($D33="","",VLOOKUP($D33,#REF!,6))) ->  | C33: =UPPER(IF($D33="","",VLOOKUP($D33,#REF!,7))) -> 
A34: 30 | B34: =UPPER(IF($D34="","",VLOOKUP($D34,#REF!,6))) ->  | C34: =UPPER(IF($D34="","",VLOOKUP($D34,#REF!,7))) -> 
A35: 31 | B35: =UPPER(IF($D35="","",VLOOKUP($D35,#REF!,6))) ->  | C35: =UPPER(IF($D35="","",VLOOKUP($D35,#REF!,7))) -> 
A36: 32 | B36: =UPPER(IF($D36="","",VLOOKUP($D36,#REF!,6))) ->  | C36: =UPPER(IF($D36="","",VLOOKUP($D36,#REF!,7))) -> 
A37: 33 | B37: =UPPER(IF($D37="","",VLOOKUP($D37,#REF!,6))) ->  | C37: =UPPER(IF($D37="","",VLOOKUP($D37,#REF!,7))) -> 
A38: 34 | B38: =UPPER(IF($D38="","",VLOOKUP($D38,#REF!,6))) ->  | C38: =UPPER(IF($D38="","",VLOOKUP($D38,#REF!,7))) -> 
A39: 35 | B39: =UPPER(IF($D39="","",VLOOKUP($D39,#REF!,6))) ->  | C39: =UPPER(IF($D39="","",VLOOKUP($D39,#REF!,7))) -> 
A40: 36 | B40: =UPPER(IF($D40="","",VLOOKUP($D40,#REF!,6))) ->  | C40: =UPPER(IF($D40="","",VLOOKUP($D40,#REF!,7))) -> 
A41: 37 | B41: =UPPER(IF($D41="","",VLOOKUP($D41,#REF!,6))) ->  | C41: =UPPER(IF($D41="","",VLOOKUP($D41,#REF!,7))) -> 
A42: 38 | B42: =UPPER(IF($D42="","",VLOOKUP($D42,#REF!,6))) ->  | C42: =UPPER(IF($D42="","",VLOOKUP($D42,#REF!,7))) -> 
A43: 39 | B43: =UPPER(IF($D43="","",VLOOKUP($D43,#REF!,6))) ->  | C43: =UPPER(IF($D43="","",VLOOKUP($D43,#REF!,7))) -> 
A44: 40 | B44: =UPPER(IF($D44="","",VLOOKUP($D44,#REF!,6))) ->  | C44: =UPPER(IF($D44="","",VLOOKUP($D44,#REF!,7))) -> 
A45: 41 | B45: =UPPER(IF($D45="","",VLOOKUP($D45,#REF!,6))) ->  | C45: =UPPER(IF($D45="","",VLOOKUP($D45,#REF!,7))) -> 
A46: 42 | B46: =UPPER(IF($D46="","",VLOOKUP($D46,#REF!,6))) ->  | C46: =UPPER(IF($D46="","",VLOOKUP($D46,#REF!,7))) -> 
A47: 43 | B47: =UPPER(IF($D47="","",VLOOKUP($D47,#REF!,6))) ->  | C47: =UPPER(IF($D47="","",VLOOKUP($D47,#REF!,7))) -> 
A48: 44 | B48: =UPPER(IF($D48="","",VLOOKUP($D48,#REF!,6))) ->  | C48: =UPPER(IF($D48="","",VLOOKUP($D48,#REF!,7))) -> 
A49: 45 | B49: =UPPER(IF($D49="","",VLOOKUP($D49,#REF!,6))) ->  | C49: =UPPER(IF($D49="","",VLOOKUP($D49,#REF!,7))) -> 
A50: 46 | B50: =UPPER(IF($D50="","",VLOOKUP($D50,#REF!,6))) ->  | C50: =UPPER(IF($D50="","",VLOOKUP($D50,#REF!,7))) -> 
A51: 47 | B51: =UPPER(IF($D51="","",VLOOKUP($D51,#REF!,6))) ->  | C51: =UPPER(IF($D51="","",VLOOKUP($D51,#REF!,7))) -> 
A52: 48 | B52: =UPPER(IF($D52="","",VLOOKUP($D52,#REF!,6))) ->  | C52: =UPPER(IF($D52="","",VLOOKUP($D52,#REF!,7))) -> 
A53: 49 | B53: =UPPER(IF($D53="","",VLOOKUP($D53,#REF!,6))) ->  | C53: =UPPER(IF($D53="","",VLOOKUP($D53,#REF!,7))) -> 
A54: 50 | B54: =UPPER(IF($D54="","",VLOOKUP($D54,#REF!,6))) ->  | C54: =UPPER(IF($D54="","",VLOOKUP($D54,#REF!,7))) -> 
A55: 51 | B55: =UPPER(IF($D55="","",VLOOKUP($D55,#REF!,6))) ->  | C55: =UPPER(IF($D55="","",VLOOKUP($D55,#REF!,7))) -> 
A56: 52 | B56: =UPPER(IF($D56="","",VLOOKUP($D56,#REF!,6))) ->  | C56: =UPPER(IF($D56="","",VLOOKUP($D56,#REF!,7))) -> 
A57: 53 | B57: =UPPER(IF($D57="","",VLOOKUP($D57,#REF!,6))) ->  | C57: =UPPER(IF($D57="","",VLOOKUP($D57,#REF!,7))) -> 
A58: 54 | B58: =UPPER(IF($D58="","",VLOOKUP($D58,#REF!,6))) ->  | C58: =UPPER(IF($D58="","",VLOOKUP($D58,#REF!,7))) -> 
A59: 55 | B59: =UPPER(IF($D59="","",VLOOKUP($D59,#REF!,6))) ->  | C59: =UPPER(IF($D59="","",VLOOKUP($D59,#REF!,7))) -> 
A60: 56 | B60: =UPPER(IF($D60="","",VLOOKUP($D60,#REF!,6))) ->  | C60: =UPPER(IF($D60="","",VLOOKUP($D60,#REF!,7))) -> 
A61: 57 | B61: =UPPER(IF($D61="","",VLOOKUP($D61,#REF!,6))) ->  | C61: =UPPER(IF($D61="","",VLOOKUP($D61,#REF!,7))) -> 
A62: 58 | B62: =UPPER(IF($D62="","",VLOOKUP($D62,#REF!,6))) ->  | C62: =UPPER(IF($D62="","",VLOOKUP($D62,#REF!,7))) -> 
A63: 59 | B63: =UPPER(IF($D63="","",VLOOKUP($D63,#REF!,6))) ->  | C63: =UPPER(IF($D63="","",VLOOKUP($D63,#REF!,7))) -> 
A64: 60 | B64: =UPPER(IF($D64="","",VLOOKUP($D64,#REF!,6))) ->  | C64: =UPPER(IF($D64="","",VLOOKUP($D64,#REF!,7))) -> 
A65: 61 | B65: =UPPER(IF($D65="","",VLOOKUP($D65,#REF!,6))) ->  | C65: =UPPER(IF($D65="","",VLOOKUP($D65,#REF!,7))) -> 
A66: 62 | B66: =UPPER(IF($D66="","",VLOOKUP($D66,#REF!,6))) ->  | C66: =UPPER(IF($D66="","",VLOOKUP($D66,#REF!,7))) -> 
A67: 63 | B67: =UPPER(IF($D67="","",VLOOKUP($D67,#REF!,6))) ->  | C67: =UPPER(IF($D67="","",VLOOKUP($D67,#REF!,7))) -> 
A68: 64 | B68: =UPPER(IF($D68="","",VLOOKUP($D68,#REF!,6))) ->  | C68: =UPPER(IF($D68="","",VLOOKUP($D68,#REF!,7))) -> 
B70: W/0

Sheet Hoja1
